bitfinex-derivatives/quotes_BTCF0:USTF0_20250822
["timestamp","ask_amount","ask_price","bid_price","bid_amount"]
[1755884759172,0.7007234,116820.0,116810.0,1.38284784]
[1755884759385,0.7007234,116820.0,116810.0,1.78590728]
[1755884760384,0.8387634,116820.0,116810.0,1.78590728]
[1755884760584,0.61512,116820.0,116810.0,1.78590728]
[1755884760784,0.8387634,116820.0,116810.0,1.78590728]
[1755884761590,0.8387634,116820.0,116810.0,1.78690728]
[1755884762088,0.8387634,116820.0,116810.0,1.78590728]
[1755884762281,0.7007234,116820.0,116810.0,1.78690728]
[1755884762480,0.8387634,116820.0,116810.0,1.78690728]
[1755884762680,0.7007234,116820.0,116810.0,1.78690728]
[1755884762882,0.12582,116820.0,116810.0,1.78690728]
[1755884763280,0.12582,116820.0,116810.0,1.78709254]
[1755884763682,0.08509,116820.0,116810.0,1.78709254]
[1755884765384,0.21003,116820.0,116810.0,1.7872778]
[1755884765782,0.08509,116820.0,116810.0,1.7872778]
[1755884766996,0.12728,116820.0,116810.0,1.7872778]
[1755884767187,0.25687,116820.0,116810.0,1.7872778]
[1755884768391,0.16266,116820.0,116810.0,1.7872778]
[1755884769496,0.08509,116820.0,116810.0,1.7872778]
[1755884770084,0.08509,116820.0,116810.0,1.38421836]
[1755884770395,0.08509,116820.0,116810.0,1.7872778]
[1755884771598,0.08509,116820.0,116810.0,1.38421836]
[1755884771897,0.08509,116820.0,116810.0,1.7872778]
[1755884772595,0.08509,116820.0,116810.0,1.78571834]
[1755884772897,0.08509,116820.0,116810.0,1.78762348]
[1755884773288,0.22149,116820.0,116810.0,1.78762348]
[1755884773487,0.3893,116820.0,116810.0,1.78762348]
[1755884773998,0.3893,116820.0,116810.0,1.38456404]
[1755884774194,0.3893,116820.0,116810.0,1.78762348]
[1755884774790,0.3893,116820.0,116810.0,1.38456404]
[1755884774995,0.3893,116820.0,116810.0,1.78762348]
[1755884776300,0.3893,116820.0,116810.0,1.78782681]
[1755884776801,0.3893,116820.0,116810.0,1.78803014]
[1755884777799,0.7501,116820.0,116810.0,1.75961014]
[1755884778301,0.8357033,116820.0,116810.0,1.75961014]
[1755884778803,0.8357033,116820.0,116810.0,1.67231944]
[1755884779003,0.8549347,116820.0,116810.0,1.67231944]
[1755884779298,1.50799414,116820.0,116810.0,0.17347]
[1755884779503,1.50799414,116820.0,116810.0,0.0035118]
[1755884780199,1.25799414,116820.0,116810.0,0.2345318]
[1755884780802,0.8549347,116820.0,116810.0,0.2345318]
[1755884780999,1.25799414,116820.0,116810.0,0.0035118]
[1755884781504,1.25799414,116820.0,116810.0,0.0025118]
[1755884781900,0.247698,116800.0,116790.0,1.14401925]
[1755884782106,0.835288,116800.0,116790.0,1.14401925]
[1755884782401,0.835288,116800.0,116790.0,1.13882925]
[1755884782606,0.835288,116800.0,116790.0,1.63350869]
[1755884782796,0.835288,116800.0,116790.0,1.23044925]
[1755884782993,0.835288,116800.0,116790.0,0.1774809]
[1755884783196,0.835288,116800.0,116770.0,0.191]
[1755884783197,0.4625027,116780.0,116770.0,0.191]
[1755884783395,0.46251,116770.0,116760.0,0.191]
[1755884783597,0.0856473,116760.0,116750.0,1.59114872]
[1755884783802,0.8233173,116760.0,116750.0,1.67686342]
[1755884784197,0.61724,116760.0,116750.0,1.69743595]
[1755884784404,0.06106,116760.0,116750.0,1.69743595]
[1755884784598,0.02568,116760.0,116750.0,1.69743595]
[1755884784801,0.73802835,116770.0,116760.0,0.4359873]
[1755884785110,0.57780095,116770.0,116760.0,0.83904674]
[1755884785296,0.57780095,116770.0,116760.0,0.83924674]
[1755884785494,0.75744095,116770.0,116760.0,0.83924674]
[1755884785703,0.82366835,116770.0,116760.0,0.83924674]
[1755884785901,0.82366835,116770.0,116760.0,0.35054]
[1755884786100,0.82366835,116770.0,116760.0,0.35154]
[1755884786301,0.82366835,116770.0,116760.0,1.24472]
[1755884786504,0.82366835,116770.0,116760.0,1.10556]
[1755884786695,1.47672779,116770.0,116760.0,0.0012]
[1755884787101,1.47672779,116770.0,116760.0,0.0042]
[1755884787297,1.07366835,116770.0,116760.0,0.0042]
[1755884787506,0.4627547,116750.0,116740.0,1.1124]
[1755884787704,0.8235547,116750.0,116740.0,1.198062]
[1755884787907,0.8235547,116750.0,116740.0,1.210022]
[1755884788105,0.8235547,116750.0,116740.0,0.38184866]
[1755884788510,0.8235547,116750.0,116740.0,0.35074866]
[1755884788511,1.1843547,116750.0,116740.0,0.35074866]
[1755884788711,1.1843547,116750.0,116740.0,0.35174866]
[1755884788910,1.0987,116750.0,116740.0,0.9416222]
[1755884789207,1.1843547,116750.0,116740.0,0.38284866]
[1755884790508,1.0987,116750.0,116740.0,0.46851066]
[1755884790697,1.0987,116750.0,116740.0,0.9418222]
[1755884790902,1.0987,116750.0,116740.0,0.46871066]
[1755884791100,1.1843547,116750.0,116740.0,0.92452408]
[1755884791310,1.1843547,116750.0,116740.0,0.45141254]
[1755884793614,1.0987,116750.0,116740.0,1.01018608]
[1755884794511,0.7813576,116760.0,116750.0,0.36126]
[1755884794706,0.7813576,116760.0,116750.0,1.2747]
[1755884794707,0.8235476,116760.0,116750.0,1.2747]
[1755884795015,0.8235476,116760.0,116750.0,1.26274]
[1755884795807,0.8245476,116760.0,116750.0,1.26274]
[1755884796109,0.8245476,116760.0,116750.0,1.27424]
[1755884796623,0.8245476,116760.0,116750.0,0.361]
[1755884796824,0.8255476,116760.0,116750.0,0.361]
[1755884797816,0.8255476,116760.0,116750.0,0.4466547]
[1755884798617,0.8255476,116760.0,116750.0,0.91976624]
[1755884798618,0.48284,116760.0,116750.0,0.91976624]
[1755884798821,0.02768,116760.0,116750.0,0.91976624]
[1755884799028,0.002,116760.0,116750.0,0.91976624]
[1755884799221,0.3628,116760.0,116750.0,0.4466547]
[1755884799421,0.42381,116760.0,116750.0,0.91976624]
[1755884799824,0.8189773,116760.0,116750.0,0.91976624]
[1755884800224,0.73333,116760.0,116750.0,0.91976624]
[1755884800423,0.73233,116760.0,116750.0,0.91976624]
[1755884800623,0.8179773,116760.0,116750.0,0.4466547]
[1755884801026,0.8179773,116760.0,116750.0,0.91976624]
[1755884802329,0.8179773,116760.0,116750.0,0.4466547]
[1755884802627,0.8169773,116760.0,116750.0,0.91976624]
[1755884803831,0.73133,116760.0,116750.0,0.4466547]
[1755884804025,0.73133,116760.0,116750.0,0.91976624]
[1755884804224,0.73133,116760.0,116750.0,0.4466547]
[1755884804426,0.73133,116760.0,116750.0,0.91976624]
[1755884805027,0.73133,116760.0,116750.0,0.4466547]
[1755884805231,0.8169773,116760.0,116750.0,0.91976624]
[1755884806625,0.8169773,116760.0,116750.0,0.4466547]
[1755884806826,0.8169773,116760.0,116750.0,0.91976624]
[1755884807027,0.8169773,116760.0,116750.0,0.92078858]
[1755884807426,0.8169773,116760.0,116750.0,0.44767704]
[1755884807626,0.8169773,116760.0,116750.0,0.92078858]
[1755884807826,0.8169773,116760.0,116750.0,0.44767704]
[1755884808028,0.8169773,116760.0,116750.0,0.92078858]
[1755884808936,0.73133,116760.0,116750.0,0.92078858]
[1755884809136,0.4634,116760.0,116750.0,0.92078858]
[1755884809333,0.16341835,116770.0,116760.0,0.4496073]
[1755884809536,0.02462835,116770.0,116760.0,1.83551884]
[1755884810138,0.02462835,116770.0,116760.0,1.83654118]
[1755884810432,0.02462835,116770.0,116760.0,2.17019818]
[1755884810635,0.00112835,116770.0,116760.0,2.42019818]
[1755884811424,0.00012835,116770.0,116760.0,2.42019818]
[1755884812124,0.00012835,116770.0,116760.0,2.42025629]
[1755884812529,0.00012835,116770.0,116760.0,2.42125629]
[1755884812830,0.06113835,116770.0,116760.0,2.42125629]
[1755884813030,0.02462835,116770.0,116760.0,2.42125629]
[1755884813337,0.00012835,116770.0,116760.0,2.42125629]
[1755884813537,0.00012835,116770.0,116760.0,2.42225629]
[1755884815437,0.26837835,116770.0,116760.0,1.61548775]
[1755884815640,0.37065835,116770.0,116760.0,2.01887202]
[1755884815835,0.37065835,116770.0,116760.0,1.61548775]
[1755884816036,0.37065835,116770.0,116760.0,1.76887202]
[1755884818532,0.37065835,116770.0,116760.0,1.36548775]
[1755884818737,0.37065835,116770.0,116760.0,1.76887202]
[1755884820333,0.37065835,116770.0,116760.0,1.76933192]
[1755884821237,0.37065835,116770.0,116760.0,1.28030035]
[1755884821238,0.81709835,116770.0,116760.0,1.28030035]
[1755884821438,0.81709835,116770.0,116760.0,1.36594765]
[1755884821639,0.81709835,116770.0,116760.0,1.76933192]
[1755884821933,0.81709835,116770.0,116760.0,1.36594765]
[1755884822137,0.73145835,116770.0,116760.0,1.76933192]
[1755884822337,0.73145835,116770.0,116760.0,1.36594765]
[1755884822528,0.73145835,116770.0,116760.0,1.76933192]
[1755884822929,0.73145835,116770.0,116760.0,2.17271619]
[1755884822930,0.02462835,116770.0,116760.0,2.17271619]
[1755884823131,0.36092835,116770.0,116760.0,1.37638234]
[1755884823435,0.55182835,116770.0,116760.0,1.77976661]
[1755884823634,0.73145835,116770.0,116760.0,1.77976661]
[1755884823937,0.73145835,116770.0,116760.0,1.77976676]
[1755884824335,0.81709835,116770.0,116760.0,1.69303946]
[1755884824935,0.81709835,116770.0,116760.0,1.27815519]
[1755884825136,0.83652169,116770.0,116760.0,1.27815519]
[1755884825328,1.23990596,116770.0,116760.0,0.10602519]
[1755884825532,1.48990596,116770.0,116760.0,0.01417519]
[1755884826336,1.48990596,116770.0,116760.0,0.01449496]
[1755884826536,1.23990596,116770.0,116760.0,0.01349496]
[1755884826737,1.23990596,116770.0,116760.0,0.01449496]
[1755884827244,1.48990596,116770.0,116760.0,0.01449729]
[1755884827434,1.48990596,116770.0,116760.0,0.01349729]
[1755884827635,1.49090596,116770.0,116760.0,0.01349729]
[1755884828136,1.51329436,116770.0,116760.0,0.01249729]
[1755884828536,1.51329436,116770.0,116740.0,1.00019254]
[1755884828537,0.4524547,116750.0,116740.0,1.00019254]
[1755884828745,0.4524547,116750.0,116740.0,0.09899643]
[1755884828746,1.1740547,116750.0,116740.0,0.09899643]
[1755884829238,1.1740547,116750.0,116740.0,0.18700643]
[1755884829441,1.1740547,116750.0,116740.0,0.9448727]
[1755884829942,1.0884,116750.0,116740.0,0.9448727]
[1755884830239,1.1740547,116750.0,116740.0,0.9448727]
[1755884830835,1.0884,116750.0,116740.0,0.9448727]
[1755884831249,1.1740547,116750.0,116740.0,0.9448727]
[1755884831942,1.0884,116750.0,116740.0,0.9448727]
[1755884832142,0.7276,116750.0,116740.0,0.9450727]
[1755884832641,0.61351,116750.0,116740.0,0.9450727]
[1755884832849,0.48173,116760.0,116750.0,0.2130847]
[1755884833040,0.50115674,116760.0,116750.0,1.76691286]
[1755884833253,0.57423,116760.0,116750.0,1.76691286]
[1755884833745,0.68832,116760.0,116750.0,1.76691286]
[1755884833933,0.7276,116760.0,116750.0,1.76691286]
[1755884834133,0.3668,116760.0,116750.0,1.76691286]
[1755884834944,0.3668,116760.0,116750.0,1.76791286]
[1755884835332,0.7276,116760.0,116750.0,1.76691286]
[1755884835535,0.8132473,116760.0,116750.0,1.54469816]
[1755884835740,0.8132473,116760.0,116750.0,1.68125721]
[1755884835936,0.8132473,116760.0,116750.0,1.68125739]
[1755884836135,1.46663157,116760.0,116750.0,0.01024312]
[1755884836337,1.46663157,116760.0,116750.0,0.01024365]
[1755884836338,1.48605825,116760.0,116750.0,0.01024365]
[1755884836648,1.08267398,116760.0,116750.0,0.01024409]
[1755884836845,1.48605825,116760.0,116750.0,0.01024409]
[1755884837240,1.46663157,116760.0,116750.0,0.0002]
[1755884837546,0.452462,116740.0,116730.0,1.13505]
[1755884837741,0.813262,116740.0,116730.0,1.63785427]
[1755884838249,0.813262,116740.0,116730.0,1.66073427]
[1755884839047,0.7276,116740.0,116730.0,1.74740357]
[1755884839445,0.45934,116740.0,116730.0,1.76599291]
[1755884839635,0.09854,116740.0,116730.0,1.83444488]
[1755884839839,0.45934,116740.0,116730.0,1.83444488]
[1755884840046,0.09854,116740.0,116730.0,1.83444488]
[1755884840349,0.45934,116740.0,116730.0,1.83544488]
[1755884841246,0.52101,116740.0,116730.0,1.83544488]
[1755884841447,0.52101,116740.0,116730.0,1.83564488]
[1755884841843,0.38471,116740.0,116730.0,1.83564488]
[1755884842052,0.38471,116740.0,116730.0,1.43226061]
[1755884842244,0.38471,116740.0,116730.0,1.83564488]
[1755884842750,0.02391,116740.0,116730.0,1.83564488]
[1755884843640,0.66593,116740.0,116730.0,1.83564488]
[1755884843845,0.7276,116740.0,116730.0,1.83564488]
[1755884844747,0.7276,116740.0,116730.0,1.43226061]
[1755884844944,0.7276,116740.0,116730.0,1.83564488]
[1755884845146,0.813262,116740.0,116730.0,1.43226061]
[1755884845448,0.7276,116740.0,116730.0,1.83564488]
[1755884846252,0.7276,116740.0,116730.0,1.83681787]
[1755884846450,0.61351,116740.0,116730.0,1.83681787]
[1755884846653,0.72481,116740.0,116730.0,1.83681787]
[1755884846948,0.02391,116740.0,116730.0,1.83681787]
[1755884847147,0.72481,116750.0,116740.0,0.4562921]
[1755884847346,0.72481,116750.0,116740.0,0.86104936]
[1755884848149,0.61351,116750.0,116740.0,0.86104936]
[1755884848349,0.09854,116750.0,116740.0,0.86104936]
[1755884848550,0.45934,116750.0,116740.0,0.86104936]
[1755884849342,0.45934,116750.0,116740.0,0.87109311]
[1755884850148,0.45934,116750.0,116740.0,0.87209311]
[1755884851557,0.45934,116750.0,116740.0,0.87309311]
[1755884851757,0.61351,116750.0,116740.0,0.87360891]
[1755884851960,0.61351,116750.0,116740.0,0.87412488]
[1755884852259,0.61351,116750.0,116740.0,0.87312488]
[1755884852459,0.61351,116750.0,116740.0,0.87412488]
[1755884852875,0.61351,116750.0,116740.0,0.87412472]
[1755884853555,0.72481,116750.0,116740.0,0.87426614]
[1755884855348,0.74417608,116750.0,116740.0,0.87426614]
[1755884855753,0.63287608,116750.0,116740.0,0.8742661]
[1755884856060,0.72307,116750.0,116740.0,0.8742661]
[1755884856760,0.72307,116750.0,116740.0,0.47088183]
[1755884856959,0.72307,116750.0,116740.0,0.93540369]
[1755884857761,0.72307,116750.0,116740.0,0.53201942]
[1755884857961,0.72307,116750.0,116740.0,0.93540369]
[1755884859162,0.72307,116750.0,116740.0,0.93591637]
[1755884859364,0.72307,116750.0,116740.0,0.87477878]
[1755884859555,0.72307,116750.0,116740.0,0.87529146]
[1755884860962,0.72307,116750.0,116740.0,0.87543929]
[1755884861154,0.72307,116750.0,116740.0,0.86539574]
[1755884861356,0.72307,116750.0,116740.0,0.87543921]
[1755884862964,0.36227,116750.0,116740.0,1.23623921]
[1755884863464,0.36227,116750.0,116740.0,0.87543921]
[1755884863663,0.72307,116750.0,116740.0,0.87543921]
[1755884863860,0.36227,116750.0,116740.0,0.47205494]
[1755884864162,0.72307,116750.0,116740.0,0.87543921]
[1755884865467,0.36227,116750.0,116740.0,0.87543921]
[1755884865657,0.72307,116750.0,116740.0,0.87543921]
[1755884865852,0.36227,116750.0,116740.0,0.87543921]
[1755884866060,0.72307,116750.0,116740.0,0.87543921]
[1755884866564,0.72307,116750.0,116740.0,0.87595165]
[1755884867163,0.72307,116750.0,116740.0,0.87646409]
[1755884867666,0.8087249,116750.0,116740.0,0.75894199]
[1755884867875,1.46210917,116750.0,116740.0,0.10479772]
[1755884868165,1.48155386,116750.0,116740.0,0.01678772]
[1755884868364,0.2340722,116740.0,116730.0,0.99432131]
[1755884868564,0.7985122,116740.0,116730.0,1.08233131]
[1755884868765,0.7985122,116740.0,116730.0,0.41990131]
[1755884869161,0.71285,116740.0,116730.0,0.90895508]
[1755884869365,0.35205,116740.0,116730.0,0.94469508]
[1755884870266,0.35205,116740.0,116730.0,0.94569508]
[1755884870566,0.71285,116740.0,116730.0,0.94569508]
[1755884871269,0.71285,116740.0,116730.0,0.94669508]
[1755884875462,0.71285,116740.0,116730.0,0.54331081]
[1755884875671,0.71285,116740.0,116730.0,0.94689508]
[1755884879772,0.71285,116740.0,116730.0,0.54351081]
[1755884879974,0.71285,116740.0,116730.0,0.94689508]
[1755884880373,0.71285,116740.0,116730.0,0.95693969]
[1755884881473,0.3834,116740.0,116730.0,1.20693969]
[1755884881678,0.3834,116750.0,116740.0,0.4542621]
[1755884881874,0.45488,116760.0,116750.0,0.0856547]
[1755884882071,0.71285,116760.0,116750.0,0.86788358]
[1755884883078,0.60329,116760.0,116750.0,0.86788358]
[1755884883472,0.71285,116760.0,116750.0,0.86788358]
[1755884883671,0.71385,116760.0,116750.0,0.86788358]
[1755884884074,0.71385,116760.0,116750.0,0.85783897]
[1755884884678,0.71485,116760.0,116750.0,0.4544547]
[1755884884973,0.3628,116760.0,116750.0,1.52243851]
[1755884885169,0.002,116760.0,116750.0,1.52243851]
[1755884885373,0.002,116760.0,116750.0,1.27243851]
[1755884885575,0.002,116760.0,116750.0,1.33379441]
[1755884885880,0.002,116760.0,116750.0,1.28131616]
[1755884886281,0.001,116760.0,116750.0,0.87793189]
[1755884886479,0.001,116760.0,116750.0,1.28131616]
[1755884886876,0.09700835,116770.0,116760.0,0.0856472]
[1755884887074,0.09700835,116770.0,116760.0,2.18174737]
[1755884887270,0.18314835,116770.0,116760.0,2.18174737]
[1755884887474,0.34449835,116770.0,116760.0,1.7783631]
[1755884887886,0.23930835,116770.0,116760.0,1.76832147]
[1755884888184,0.02263835,116770.0,116760.0,1.76964276]
[1755884888376,0.02363835,116770.0,116760.0,2.17302703]
[1755884888978,0.02363835,116770.0,116760.0,2.18306834]
[1755884889886,0.02363835,116770.0,116760.0,2.17302703]
[1755884890187,0.14588835,116770.0,116760.0,1.37629972]
[1755884890486,0.20204835,116770.0,116760.0,2.14048399]
[1755884890986,0.11590835,116770.0,116760.0,1.73709972]
[1755884891187,0.34649835,116770.0,116760.0,2.14048399]
[1755884891395,0.24130835,116770.0,116760.0,2.14048399]
[1755884892377,0.34649835,116770.0,116760.0,2.14048399]
[1755884893085,0.34449835,116770.0,116760.0,2.14048399]
[1755884893286,0.15316835,116770.0,116760.0,2.14048399]
[1755884893483,0.02263835,116770.0,116760.0,2.54386826]
[1755884894982,0.00012835,116770.0,116760.0,2.54386826]
[1755884895185,0.00012835,116770.0,116760.0,2.79386826]
[1755884895384,0.59998,116790.0,116780.0,0.2100618]
[1755884895591,0.7053,116790.0,116780.0,1.7771473]
[1755884895888,0.7909244,116790.0,116780.0,1.37376303]
[1755884896184,0.7909244,116790.0,116780.0,1.69283679]
[1755884896583,0.7909244,116790.0,116780.0,1.28945252]
[1755884896986,0.7909244,116790.0,116780.0,1.69283679]
[1755884897186,0.7919244,116790.0,116780.0,1.70957971]
[1755884897984,0.7929244,116790.0,116780.0,1.70957971]
[1755884898485,0.7929244,116790.0,116780.0,1.709579]
[1755884899289,0.7929244,116790.0,116780.0,1.30619473]
[1755884899591,0.7929244,116790.0,116780.0,1.709579]
[1755884899988,0.7929244,116790.0,116780.0,1.7952115]
[1755884900186,0.7073,116790.0,116780.0,1.39182723]
[1755884900388,0.7073,116790.0,116780.0,1.7952115]
[1755884900990,0.7929252,116790.0,116780.0,1.39182723]
[1755884901293,0.7929252,116790.0,116780.0,1.709579]
[1755884901796,0.7929252,116790.0,116780.0,1.7952115]
[1755884902189,0.7929252,116790.0,116780.0,1.39182723]
[1755884902494,0.7929252,116790.0,116780.0,1.7952115]
[1755884903989,0.7929252,116790.0,116780.0,1.79521138]
[1755884904695,0.7929252,116790.0,116780.0,1.39182711]
[1755884904994,0.7929252,116790.0,116780.0,1.79521138]
[1755884905490,0.7073,116790.0,116780.0,1.79521138]
[1755884906396,0.7073,116790.0,116780.0,1.39182711]
[1755884906592,0.7929252,116790.0,116780.0,1.39182711]
[1755884906792,0.7929252,116790.0,116780.0,1.38178671]
[1755884906994,0.7929252,116790.0,116780.0,1.79521125]
[1755884907296,0.60198,116790.0,116780.0,1.79521125]
[1755884907594,0.64821,116790.0,116780.0,1.79521125]
[1755884907796,0.7899952,116790.0,116780.0,1.39182698]
[1755884907996,0.7899952,116790.0,116780.0,1.79521125]
[1755884909594,0.38531,116790.0,116780.0,1.79521125]
[1755884909809,0.002,116790.0,116780.0,1.79521115]
[1755884910096,0.002,116790.0,116780.0,2.40601115]
[1755884910499,0.59998,116810.0,116800.0,0.4594278]
[1755884910691,0.59998,116810.0,116800.0,2.17871651]
[1755884910692,0.38331,116810.0,116800.0,2.17871651]
[1755884910897,0.38331,116810.0,116800.0,1.77533224]
[1755884911097,0.4689204,116810.0,116800.0,1.69103573]
[1755884911292,0.5040304,116810.0,116800.0,1.77665353]
[1755884911490,0.6463304,116810.0,116800.0,1.77665353]
[1755884912493,0.56072,116810.0,116800.0,1.77665197]
[1755884912899,0.7507205,116810.0,116800.0,1.77665197]
[1755884913386,0.56072,116810.0,116800.0,1.77795021]
[1755884913591,0.38331,116810.0,116800.0,1.77795021]
[1755884914094,0.02251,116810.0,116800.0,1.37556594]
[1755884914296,0.02251,116810.0,116800.0,1.84904609]
[1755884914502,0.02251,116810.0,116800.0,1.44596006]
[1755884914794,0.59998,116820.0,116810.0,0.4594205]
[1755884914995,0.38008983,116820.0,116810.0,0.87304338]
[1755884915202,0.59611,116830.0,116820.0,0.4502932]
[1755884915499,0.7844459,116830.0,116820.0,1.76777078]
[1755884915893,0.80372719,116830.0,116820.0,1.76777078]
[1755884916699,0.71813129,116830.0,116820.0,1.76777078]
[1755884917000,0.71813129,116830.0,116820.0,1.76804854]
[1755884917001,0.72013129,116830.0,116820.0,1.76804854]
[1755884917192,0.61739129,116830.0,116820.0,1.76804854]
[1755884917388,0.71813129,116830.0,116820.0,1.76804854]
[1755884918193,0.61539129,116830.0,116820.0,1.75801124]
[1755884918499,0.61539129,116830.0,116820.0,1.76804844]
[1755884918696,0.70098719,116830.0,116820.0,1.76804844]
[1755884918896,0.71813129,116830.0,116820.0,1.76804844]
[1755884919092,0.71813129,116830.0,116820.0,1.75801124]
[1755884919093,0.61539129,116830.0,116820.0,1.75801124]
[1755884919497,0.61539129,116830.0,116820.0,1.76804829]
[1755884919692,0.71813129,116830.0,116820.0,1.36466402]
[1755884919893,0.69885,116830.0,116820.0,1.75801124]
[1755884920095,0.59611,116830.0,116820.0,1.75801124]
[1755884920294,0.53926,116830.0,116820.0,1.75801124]
[1755884920494,0.7844458,116830.0,116820.0,1.75801124]
[1755884921296,0.69885,116830.0,116820.0,1.75801124]
[1755884921496,0.69885,116830.0,116820.0,1.3722793]
[1755884921497,0.42188,116830.0,116820.0,1.3722793]
[1755884921798,0.642,116830.0,116820.0,1.3722793]
[1755884922106,0.642,116830.0,116820.0,1.77566357]
[1755884922107,0.69885,116830.0,116820.0,1.77566357]
[1755884922494,0.45506,116830.0,116820.0,1.77566357]
[1755884922696,0.59611,116840.0,116830.0,0.2328759]
[1755884922905,0.80369049,116840.0,116830.0,0.85636394]
[1755884923697,0.80569049,116840.0,116830.0,0.85636394]
[1755884924904,0.80569049,116840.0,116830.0,0.77076804]
[1755884925698,0.7864386,116840.0,116830.0,0.77076804]
[1755884927400,0.7864386,116840.0,116830.0,0.38338376]
[1755884927796,0.7864386,116840.0,116830.0,0.46897966]
[1755884927797,0.70085,116840.0,116830.0,0.46897966]
[1755884928002,0.70085,116840.0,116830.0,0.87236393]
[1755884928003,0.7864386,116840.0,116830.0,0.87236393]
[1755884929204,0.7864386,116840.0,116830.0,0.88240024]
[1755884930205,0.7864386,116840.0,116830.0,0.39342007]
[1755884930397,0.7864386,116840.0,116830.0,0.79680434]
[1755884931507,0.7864386,116840.0,116830.0,0.39342007]
[1755884931697,0.7864386,116840.0,116830.0,0.79680434]
[1755884932710,0.7864386,116840.0,116830.0,0.23311007]
[1755884932911,0.7864386,116840.0,116830.0,0.35891007]
[1755884933108,0.7864386,116840.0,116830.0,0.76229434]
[1755884933306,0.7864386,116840.0,116830.0,0.79680434]
[1755884933904,0.7864386,116840.0,116830.0,0.39342007]
[1755884934107,0.7864386,116840.0,116830.0,0.79680434]
[1755884935313,0.7864386,116840.0,116830.0,0.23311007]
[1755884935500,0.80556131,116840.0,116830.0,0.11467007]
[1755884935706,1.05556131,116840.0,116830.0,1.01379007]
[1755884936614,1.45894558,116840.0,116830.0,1.01379007]
[1755884936914,1.45894558,116840.0,116830.0,0.11467007]
[1755884937215,1.45894558,116840.0,116830.0,0.01273008]
[1755884938709,1.45894558,116840.0,116830.0,0.00269377]
[1755884939014,1.45894558,116840.0,116830.0,0.08863377]
[1755884939515,1.45894558,116840.0,116830.0,0.00269377]
[1755884939718,1.45894558,116840.0,116830.0,0.08863377]
[1755884940214,1.45894558,116840.0,116830.0,0.01273108]
[1755884940912,1.47525052,116840.0,116830.0,0.00269377]
[1755884942008,1.07186625,116840.0,116830.0,0.00269377]
[1755884942212,1.47525052,116840.0,116830.0,0.00269377]
[1755884943016,1.4589855,116840.0,116830.0,0.00269377]
[1755884943903,1.4589855,116840.0,116830.0,0.36738377]
[1755884943904,1.95412123,116840.0,116830.0,0.36738377]
[1755884944303,1.95412123,116840.0,116830.0,0.18458377]
[1755884944617,2.3575055,116840.0,116830.0,0.08863377]
[1755884945216,1.95412123,116840.0,116830.0,0.08863377]
[1755884945412,1.70412123,116840.0,116830.0,0.21482377]
[1755884945915,0.80560123,116840.0,116830.0,0.63837804]
[1755884946216,0.80560123,116840.0,116830.0,0.36118377]
[1755884946417,0.80560123,116840.0,116830.0,0.37122074]
[1755884947021,0.80560123,116840.0,116830.0,0.33690074]
[1755884948308,0.80560123,116840.0,116830.0,0.32686377]
[1755884948513,0.80560123,116840.0,116830.0,0.33690103]
[1755884948709,0.80560123,116840.0,116830.0,0.21071103]
[1755884948913,0.80560123,116840.0,116830.0,0.33690103]
[1755884949106,0.80560123,116840.0,116830.0,0.8602012]
[1755884949514,0.61727263,116840.0,116830.0,0.8602012]
[1755884949716,0.80106123,116840.0,116830.0,1.7580412]
[1755884949917,0.80106123,116840.0,116830.0,1.35465693]
[1755884950219,0.71547263,116840.0,116830.0,1.7580412]
[1755884950619,0.80106123,116840.0,116830.0,1.7580412]
[1755884951016,0.52724263,116840.0,116830.0,1.7580412]
[1755884951207,0.40550263,116840.0,116830.0,1.99800394]
[1755884951412,0.38634,116840.0,116830.0,2.00803998]
[1755884952513,0.38634,116840.0,116830.0,1.60465571]
[1755884952713,0.38634,116840.0,116830.0,2.00803998]
[1755884954020,0.02554,116840.0,116830.0,2.00803998]
[1755884956019,0.04471035,116840.0,116830.0,2.00803998]
[1755884956422,0.02117035,116840.0,116830.0,2.00803998]
[1755884956920,0.02117035,116840.0,116830.0,1.99800394]
[1755884957118,0.02117035,116840.0,116830.0,2.00803965]
[1755884958326,0.12954905,116840.0,116830.0,2.00803965]
[1755884959018,0.28188905,116840.0,116830.0,2.00803965]
[1755884959224,0.33656905,116840.0,116830.0,2.00803965]
[1755884959424,0.11515035,116840.0,116830.0,2.00803965]
[1755884959624,0.11515035,116840.0,116830.0,2.00703965]
[1755884959823,0.11515035,116840.0,116830.0,1.11019965]
[1755884960028,0.28188895,116840.0,116830.0,2.00699965]
[1755884960527,0.20073895,116840.0,116830.0,2.00699965]
[1755884961026,0.28188895,116840.0,116830.0,2.00699965]
[1755884961328,0.20073895,116840.0,116830.0,2.00699965]
[1755884961628,0.09598,116840.0,116830.0,1.60361538]
[1755884961827,0.02479,116840.0,116830.0,2.00699965]
[1755884962321,0.02479,116840.0,116830.0,2.00675965]
[1755884962922,0.02479,116840.0,116830.0,2.00671965]
[1755884964330,0.002,116840.0,116830.0,1.11019965]
[1755884964723,0.002,116840.0,116830.0,2.00647965]
[1755884965530,0.002,116840.0,116830.0,2.00647963]
[1755884968833,0.002,116840.0,116830.0,1.60309536]
[1755884969132,0.002,116840.0,116830.0,2.00647963]
[1755884969333,0.02479,116840.0,116830.0,2.00647963]
[1755884969532,0.38559,116840.0,116830.0,2.00647963]
[1755884969727,0.02479,116840.0,116830.0,2.00647963]
[1755884969923,0.38559,116840.0,116830.0,1.75647963]
[1755884970133,0.02479,116840.0,116830.0,1.35309536]
[1755884970332,0.46674,116840.0,116830.0,1.75575963]
[1755884970535,0.50068,116840.0,116830.0,1.75575963]
[1755884971836,0.53793,116840.0,116830.0,1.75575963]
[1755884972027,0.59261,116840.0,116830.0,1.75575963]
[1755884972334,0.68798,116840.0,116830.0,1.75575963]
[1755884972539,0.7735686,116840.0,116830.0,1.75555963]
[1755884973239,0.7735686,116840.0,116830.0,1.75562279]
[1755884973634,0.7735686,116840.0,116830.0,1.35223852]
[1755884973938,0.7735686,116840.0,116830.0,1.35230193]
[1755884974243,0.7735686,116840.0,116830.0,1.26670603]
[1755884974438,0.7735686,116840.0,116830.0,1.26654603]
[1755884974639,0.7735686,116840.0,116830.0,1.7555262]
[1755884975240,0.7735686,116840.0,116830.0,1.75603865]
[1755884976240,0.7735686,116840.0,116830.0,1.35316683]
[1755884976438,0.7735686,116840.0,116830.0,1.7565511]
[1755884976939,0.68798,116840.0,116830.0,1.75655125]
[1755884977439,0.59261,116840.0,116830.0,1.75655125]
[1755884978536,0.7719486,116840.0,116830.0,1.75655125]
[1755884978742,0.7719486,116840.0,116830.0,1.35316698]
[1755884978940,0.7719486,116840.0,116830.0,1.75655125]
[1755884979141,0.7719486,116840.0,116830.0,1.35316698]
[1755884979340,0.7719486,116840.0,116830.0,1.26757108]